Cogmind - Beta 15 @@@ ROGUE MODE // 2025.07.20 @ 17:26:49 Player: jumpy Result: Self-destructed Performance ------------- Evolutions (1) 500 Regions Visited (3) 600 Robots Destroyed (23) 115 Value Destroyed (503) 503 Prototype IDs (0) 0 Alien Tech Used (0) 0 Bonus (85) 85 TOTAL SCORE: 1803 Bonus ------- Follower Combat Kills 85 Cogmind --------- Core Integrity 358/400 Matter 300/300 Energy 250/250 System Corruption 0% Temperature Cool (0) Movement Treading (160) Location -9/Mines Parts ------- > --- POWER (1) -------- Ion Engine > --- PROPULSION (3) --- Light Treads Light Treads Light Treads > --- UTILITY (3) ------ Small Storage Unit Seismic Detector Light Armor Plating > --- WEAPON (2) ------- Small Laser Small Laser > --- INVENTORY (8) ---- Ion Engine Wheel Wheel Improved Terrain Scanner Seismic Detector Light Assault Rifle Mining Laser Peak State ------------ > --- POWER ------------ Ion Engine > --- PROPULSION ------- Light Treads Light Treads Light Treads > --- UTILITY ---------- Small Storage Unit Seismic Detector Light Armor Plating > --- WEAPON ----------- Medium Laser Small Laser > --- INVENTORY -------- Ion Engine Wheel Wheel Improved Terrain Scanner Seismic Detector Small Laser Light Assault Rifle Mining Laser [Rating: 10] Favorites ----------- Power Ion Engine Engine Ion Engine Propulsion Light Treads Treads Light Treads Utility Small Storage Unit Device Seismic Detector Storage Small Storage Unit Protection Light Armor Plating Weapon Small Laser Energy Gun Small Laser Build | -11 -10 -9 -9 ------- Run | Yrd Mat Mat Min Slots Evolved 2 | . . 2 . Power . | . . . . Propulsion 1 | . . 1 . Utility 1 | . . 1 . Weapon . | . . . . Parts Attached 10 | 7 1 2 . Power 1 | 1 . . . Engine 1 | 1 . . . Core . | . . . . Reactor . | . . . . Propulsion 3 | 2 . 1 . Treads 3 | 2 . 1 . Leg . | . . . . Wheel . | . . . . Hover . | . . . . Flight . | . . . . Utility 3 | 2 . 1 . Device 1 | 1 . . . Storage 1 | 1 . . . Processor . | . . . . Hackware . | . . . . Protection 1 | . . 1 . Artifact . | . . . . Weapon 3 | 2 1 . . Energy Gun 3 | 2 1 . . Energy Cannon . | . . . . Ballistic Gun . | . . . . Ballistic Cannon . | . . . . Launcher . | . . . . Special Weapon . | . . . . Impact Weapon . | . . . . Slashing Weapon . | . . . . Piercing Weapon . | . . . . Special Melee Weapon . | . . . . Unidentified Prototypes . | . . . . Parts Lost 1 | . . . 1 Power . | . . . . Propulsion . | . . . . Utility . | . . . . Weapon 1 | . . . 1 Highest Loss Streak 1 | . . . 1 To Critical Strikes . | . . . . Average Backups 6 | 4 7 8 7 Power . | . 1 1 1 Propulsion 1 | 1 2 2 2 Utility 1 | . 2 2 2 Weapon 2 | 1 2 3 2 Tool/Special . | . . . . Unused Backups 8 | 1 . . 7 Power 1 | . . . 1 Propulsion 2 | . . . 2 Utility 3 | 1 . . 2 Weapon 2 | . . . 2 Tool/Special . | . . . . Average Slot Usage (%) 98 | . 100 93 99 Engine 11 | . 14 11 11 Treads 31 | . 28 30 33 Device 11 | . 14 11 11 Storage 11 | . 14 11 11 Protection 8 | . . 8 11 Energy Gun 22 | . 28 22 21 Peak Build Rating 10 | 7 8 10 10 Average Rating 8 | 5 7 9 9 On Entrance 6 | . 7 8 10 Naked Turns . | . . . . Heaviest Build 17 | 13 14 17 17 Greatest Support 60 | 40 40 60 60 Greatest Overweight (x) . | . . . . Average Overweight (x) . | . . . . Largest Inventory Capacity 8 | 8 8 8 8 Average Capacity 7 | 7 8 8 8 Most Carried 8 | 7 8 8 8 Average Carried 6 | 4 7 8 7 Final Capacity 8 | 8 8 8 8 Final Carried 8 | 7 8 8 7 Class Distribution -------------------- 100% | Mutant Dominant Class ---------------- Mutant | -10/Materials Mutant | -9/Materials Mutant | -9/Mines Resources | -11 -10 -9 -9 ----------- Run | Yrd Mat Mat Min Matter Collected 310 | 270 . 30 10 Remotely . | . . . . Salvage Created 864 | 269 . 223 372 Parts 48 | 22 . 15 11 Haulers Intercepted . | . . . . Recyclers Shooed 1 | 1 . . . Parts Field Recycled . | . . . . Retrieved Matter . | . . . . Parts Self-Destructed . | . . . . Prevented . | . . . . Kills | -11 -10 -9 -9 ------- Run | Yrd Mat Mat Min Combat Hostiles Destroyed 10 | . . 4 6 Guns 9 | . . 3 6 AOE 1 | . . 1 . Classes Destroyed 7 | 3 . 3 1 Worker 2 | 1 . 1 . Tunneler 8 | 8 . . . Recycler 2 | 1 . . 1 Operator 1 | . . 1 . Grunt 7 | . . 2 5 Brawler 1 | . . . 1 Sentry 2 | . . 2 . Best Kill Streak 4 | 2 . 3 4 Combat Bots Only 3 | . . 2 3 Max Kills in Single Turn 1 | 1 . 1 1 Gunslinging . | . . . . Exploded 1 | . . 1 . Melee . | . . . . Uniques/NPCs Destroyed . | . . . . Combat | -11 -10 -9 -9 -------- Run | Yrd Mat Mat Min Hostile Shots Fired 60 | . . 9 51 Missed 15 | . . 3 12 Hits 45 | . . 6 39 Projectile 45 | . . 6 39 Damage Taken 584 | . . 141 443 Core 42 | . . . 42 Absorbed by Shields . | . . . . Core Remaining (%) 100 | 100 100 . . Volleys Fired 53 | 17 . 11 25 Largest 2 | 2 . 2 2 Hottest 90 | 80 . 90 90 Shots Fired 100 | 34 . 22 44 Gun 100 | 34 . 22 44 Cannon . | . . . . Launcher . | . . . . Special . | . . . . Kinetic . | . . . . Thermal 100 | 34 . 22 44 Explosive . | . . . . Electromagnetic . | . . . . Robot Hit Streak 9 | 8 . 9 9 Robot Miss Streak 3 | 2 . 3 2 Penetration Max . | . . . . Secondary Targets 1 | . . . 1 Max Gunslinging Chain 1 | . . . 1 Shots Hit Robots 69 | 21 . 14 34 Core Hits 36 | 11 . 10 15 Critical Kills . | . . . . Critical Parts Destroyed . | . . . . Critical Strikes 1 | . . 1 . Burn 1 | . . 1 . Melee Attacks . | . . . . Impact . | . . . . Slashing . | . . . . Piercing . | . . . . Sneak Attacks . | . . . . Combat Hostiles . | . . . . Follow-up Attacks . | . . . . Damage Inflicted 864 | 231 . 215 418 Guns 816 | 231 . 167 418 Cannons . | . . . . Explosions 48 | . . 48 . Melee . | . . . . Ramming . | . . . . Kinetic . | . . . . Thermal 864 | 231 . 215 418 Explosive . | . . . . Electromagnetic . | . . . . Impact . | . . . . Slashing . | . . . . Piercing . | . . . . Highest Corruption 4 | . 4 . . Average Corruption 3 | . 3 . . Corruption Purged . | . . . . Corruption Blocked . | . . . . Overload Shots . | . . . . Overflow Damage . | . . . . Projectiles . | . . . . Explosions . | . . . . Melee . | . . . . Knockbacks . | . . . . Impact . | . . . . Kinetic . | . . . . Secondary . | . . . . Self-Inflicted Damage 72 | . . 72 . Shots 1 | . . 1 . Rammed . | . . . . Targets Rammed . | . . . . Kicked . | . . . . Crushed . | . . . . Highest Temperature 300 | 72 . 138 300 Average Temperature 94 | 24 . 62 149 Received Heat Transfer 279 | . . 36 243 Effects 6 | . . . 6 Energy Bleed 3 | . . . 3 Interference 3 | . . . 3 Siege Activations . | . . . . Martial Activations . | . . . . Shielding Activations . | . . . . Robots Disrupted . | . . . . Combat Hostiles . | . . . . Robots Corrupted . | . . . . Combat Hostiles . | . . . . Parts Fried . | . . . . Impact Corruptions . | . . . . Robots Melted . | . . . . Combat Hostiles . | . . . . Parts Melted 2 | . . . 2 Heat Transferred 2091 | 525 . 570 996 Parts Sabotaged . | . . . . Parts Stolen . | . . . . Parts Stripped . | . . . . Power Chain Reactions . | . . . . Alert | -11 -10 -9 -9 ------- Run | Yrd Mat Mat Min Maximum Alert Level . | . . . . Low Security (%) 100 | 100 100 100 100 Level 1 . | . . . . Level 2 . | . . . . Level 3 . | . . . . Level 4 . | . . . . Level 5 . | . . . . High Security . | . . . . Max Security . | . . . . Peak Influence 122 | 10 . 122 84 Initial 39 | . . . 39 Average 32 | 1 . 82 37 Influence Increases 483 | 50 . 192 241 Destroy 0b10 Robot/C 260 | . . 80 180 Destroy 0b10 Robot/NC 65 | 50 . 10 5 Destroy Leader 60 | . . 30 30 Allied During Kill 11 | . . . 11 Disable Machine 60 | . . 45 15 Destroy Structure 27 | . . 27 . Influence Decreases 483 | 50 . 90 343 Entered New Map 63 | . . . 63 Time Decay 410 | 50 . 90 270 Lost Part 10 | . . . 10 Squads Dispatched 1 | . . 1 . Investigation . | . . . . Extermination . | . . . . Reinforcement 1 | . . 1 . Assault . | . . . . Garrison . | . . . . Intercept . | . . . . Searches Triggered . | . . . . Construction Impeded . | . . . . Haulers Reinforced . | . . . . Active Scanning Responses . | . . . . Cargo Convoy Interrupts . | . . . . Stealth | -11 -10 -9 -9 --------- Run | Yrd Mat Mat Min Distress Signals 1 | . . 1 . Communications Jammed . | . . . . Distress Signals . | . . . . Times Spotted 18 | . . 6 12 Peak Tracking Total 3 | . . 2 3 Tactical Retreats . | . . . . Traps | -11 -10 -9 -9 ------- Run | Yrd Mat Mat Min Traps Triggered 2 | . 2 . . Indirectly . | . . . . Trap Hack Attempts . | . . . . Triggered . | . . . . Disarmed . | . . . . Reprogrammed . | . . . . Reused . | . . . . Traps Extracted . | . . . . Installed . | . . . . Triggered . | . . . . Machines | -11 -10 -9 -9 ---------- Run | Yrd Mat Mat Min Machines Disabled 4 | . . 3 1 Max in Single Turn 3 | . . 3 . Machines Repaired . | . . . . Machines Dismantled . | . . . . Machines Sabotaged . | . . . . Overloaded Fab Kills . | . . . . Hacking | -11 -10 -9 -9 --------- Run | Yrd Mat Mat Min Machines Accessed 1 | . . 1 . Terminals 1 | . . 1 . Fabricators . | . . . . Repair Stations . | . . . . Recycling Units . | . . . . Scanalyzers . | . . . . Garrison Access . | . . . . Total Hacks 1 | . . 1 . Successful 1 | . . 1 . Failed . | . . . . Catastrophic . | . . . . Database Lockouts . | . . . . Manual 1 | . . 1 . Terminals 1 | . . 1 . Fabricators . | . . . . Repair Stations . | . . . . Recycling Units . | . . . . Scanalyzers . | . . . . Garrison Access . | . . . . Terminal Hacks . | . . . . Fabricator Hacks . | . . . . Repair Station Hacks . | . . . . Recycling Unit Hacks . | . . . . Scanalyzer . | . . . . Garrison Access Hacks . | . . . . Unauthorized Hacks 1 | . . 1 . Terminals 1 | . . 1 . Botnet 1 | . . 1 . Fabricators . | . . . . Repair Stations . | . . . . Recycling Units . | . . . . Scanalyzers . | . . . . Garrison Access . | . . . . Data Cores Recovered . | . . . . Used . | . . . . Hacking Detections . | . . . . Full Trace Events . | . . . . Feedback Events . | . . . . Feedback Blocked . | . . . . Robot Schematics Acquired . | . . . . Robots Built . | . . . . Authchips . | . . . . Time . | . . . . Total Robot Build Rating . | . . . . Part Schematics Acquired . | . . . . Parts Built . | . . . . Authchips . | . . . . Time . | . . . . Total Part Build Rating . | . . . . Parts Repaired . | . . . . Time . | . . . . Parts Recycled . | . . . . Recycled Matter . | . . . . Retrieved Matter . | . . . . Retrieved Components . | . . . . Parts Scanalyzed . | . . . . Part Schematics Acquired . | . . . . Parts Damaged . | . . . . Bothacking | -11 -10 -9 -9 ------------ Run | Yrd Mat Mat Min Used RIF Installer . | . . . . Robots Hacked . | . . . . Non-combat . | . . . . Combat . | . . . . Robot Hacks Applied . | . . . . Relay Couplers Released . | . . . . Fabnet Peak Effective % . | . . . . Robots Rewired . | . . . . Allies Hacked . | . . . . Hacks Repelled . | . . . . Allies | -11 -10 -9 -9 -------- Run | Yrd Mat Mat Min Total Allies 3 | . . . 3 Largest Group 3 | . . . 3 Highest-Rated Group 40 | . . . 40 Highest-Rated Ally 16 | . . . 16 Total Orders . | . . . . Ally Attacks 15 | . . . 15 Total Damage 151 | . . . 151 Kills 3 | . . . 3 Allies Corrupted . | . . . . Allies Melted . | . . . . Intel | -11 -10 -9 -9 ------- Run | Yrd Mat Mat Min Active Infowar (turns) 675 | 122 139 216 198 Seismic 675 | 122 139 216 198 Robot Analysis Total . | . . . . Derelict Logs Recovered . | . . . . Drone Launches . | . . . . Drone Recoveries . | . . . . Exploration | -11 -10 -9 -9 ------------- Run | Yrd Mat Mat Min Turns Passed 1308 | 312 139 216 641 Spaces Moved 707 | 154 86 111 356 Core 3 | 3 . . . Treads 704 | 151 86 111 356 Legs . | . . . . Wheels . | . . . . Hover . | . . . . Flight . | . . . . Fastest Speed 50 | 50 160 160 160 Average Speed 159 | 157 160 160 160 Slowest Speed 160 | 160 160 160 160 Overloaded Moves . | . . . . Propulsion Burnouts . | . . . . Robots Hopped . | . . . . Potential Cave-ins . | . . . . Cave-ins Triggered . | . . . . Exploration Rate (%) 30 | 8 22 19 71 Regions Visited 3 Branch Regions 1 Pre-discovered Areas . | . . . . Known Exits Taken . | . . . . Unknown Exits Taken 3 | 1 1 1 . Scrap Searched 1 | . . . 1 Spaces Dug . | . . . . Terrain Destroyed 28 | . . 28 . Melee . | . . . . Projectile . | . . . . AOE 28 | . . 28 . Terrain Rammed . | . . . . Walls Destroyed . | . . . . Machines Disabled . | . . . . Actions | -11 -10 -9 -9 --------- Run | Yrd Mat Mat Min Total 783 | 186 87 127 383 Wait 5 | . . 4 1 Move 704 | 153 85 110 356 Hop . | . . . . Pick Up 9 | 8 1 . . Fast Attach 9 | 7 . 2 . Attach 1 | . . . 1 Detach . | . . . . Swap 1 | . 1 . . Drop 1 | 1 . . . Fire 53 | 17 . 11 25 Melee . | . . . . Ram . | . . . . Kick . | . . . . Crush . | . . . . Escape Stasis . | . . . . Rewire . | . . . . Trap . | . . . . Miscellaneous . | . . . . Route ------- -11/Scrapyard -10/Materials (discovered 2 exits: *Mat / [*Min]) -9/Materials -9/Mines History --------- Turn | Location | Event 22 | -11/Scrapyard | Discovered new exit (range 16) 313 | -11/Scrapyard | Entered Materials 314 | -10/Materials | Build established: Mutant 383 | -10/Materials | Discovered new exit (range 4) 447 | -10/Materials | Discovered new exit (range 4) 452 | -10/Materials | Entered another Materials area 452 | -9/Materials | Evolved 2 slots: Propulsion x1, Utility x1 648 | -9/Materials | Discovered new exit (range 13) 668 | -9/Materials | Entered Mines 912 | -9/Mines | Assisted by bots powering up and referring to "LRC-V3" 1309 | -9/Mines | Self-destructed Last Messages --------------- 00866_ Seismic Detector temporarily disabled. 00868_ R-06 Scavenger collects Heat Sink. 00887_ K-01 Serf collects debris. 00912_ Trooper 2a: "Hello LRC-V3. What is your command?" 00912_ Mercenary 2a: "Hello LRC-V3. What is your command?" 00912_ Trooper 2b: "Hello LRC-V3. What is your command?" 00919_ K-01 Serf collects debris. 00933_ Searching scrap... 00933_ Found Hrd. Light Armor Plating. 00933_ Found Hvy. Assault Rifle. 00933_ Found Com. Wheel. 00933_ Found 34 Matter. 00934_ Acquired 10 matter. 01002_ K-01 Serf collects debris. 01066_ Core Extractor disabled. 01078_ G-47 Trooper destroyed. 01088_ G-34 Mercenary destroyed. 01307_ C-30 ARC bursts open, deploying its payload. 01307_ S-10 Pest unfolds itself. 01309_ K-01 Serf collects debris. Map ----- +----------------------------------------------------+ | ????????????????????????####??# #### | | ???????????????????????## ##?##### ##??## | | ??????????????????????## #?????## ##???## | | ??????????????????????# ##?????# ##???? | | ??????????????????????# #?????## #???? | | ?????????????????????## #?????## #???? | | ????????????????????## #????## ##???# | | ???????????????????## ##???## ##????# | | ???????????????????# ####???## ###![#?????# | | ???????????????????# ##?????## ###?#% #????## | | ???????????????????##/ %#?????## ##???# =#???## | | ???????????????????##% %#???### ##????# #??## | | ???????????????????# #??## ##????# #?## | | ??????????????????## % #### ##???# ### | | ????????????????### ### ##??# ## | | ???????????????## ## #??# # # | | ???????????????# #??# # | | ???????????????# ###### ##??#### # | | ???????????????# * ##????## #??????## # | | ???????????????## %[ ######### #???????###### | | ????????????????## ###?# ?? #????????????? | | ?????????????????## %##???# ??? #???????????? | | ?????????????????##% #????# #???# #???????????? | | ????????????# ### #????# #????# ##???????????? | | ????????????# % ks ######g #?????##????????????? | | ????????????# tsgg@s ##???#####??????????? | | ??????????# ####### ##?## ###????????? | | ?????????# ######?????# ### ##???????? | | ?????????# #??????????## #???????? | | ????????# ???????????# #### #??????? | | ???????# ???????????## ##??## #?????? | | ???????# ????????????# ########## #?????? | | ??????? ?????????????# ##????# ##?????? | | ????????# ??????????????# #?????##??????? | | ????????????????????????####### #?????????????? | | ?????????????????????????????## ######?######## | | ?????????????????????????????# ## ### | | ?????????????????????????????# ## """ | | ?????????????????????????????# ## """ | | ?????????????????????????????## ## """ | | ??????????????????????????????## #### ### | | ???????????????????????????????####??####?# """ | | ??????????????????????????????????????????# """ | | ??????????????????????????????????????????# """ | | ??????????????????????????????????????????# | | ??????????????????????????????????????????# """ | | ??????????????????????????????????????????# """ | | ??????????????????????????????????????????# """ | | ??????????????????????????????????????????# | | ??????????????????????????????????????????# | +----------------------------------------------------+ Best States ------------- Heat Dissipation 28 Energy Generation 10 Energy Capacity 250 Matter Stores 300 Matter Capacity 300 Sight Range 16 Terrain Scan Density 10 Armor Coverage 150 Evasion (%) 40 Recoil Reduction 3 Item Schematics ----------------- None Robot Schematics ------------------ None Fabricated ------------ Nothing Repaired ---------- Nothing Alien Tech Used ----------------- None Achievements -------------- None Challenges ------------ None Game ------ Seed FlightRegenerativeGravjet Manual? 0 Play Time 00:06:14 Cumulative 173.0 hours Start 2025.07.20 @ 17:21:24 End 2025.07.20 @ 17:26:49 Sessions 1 Manual Loads 0 Difficulty Rogue Special Mode None Game No. 422 Rogue 422 Adventurer 0 Explorer 0 Win Type - Total 7 Types 5/0/1/1/0/0/0/0/0/0 Lore% 71 Gallery% 64 Achievement% 50 Wizard Run 0 Options --------- Layout 0 ASCII 0 Keyboard 0 Movement Numpad Keybinds 0 Fullscreen 2 Font 18/Terminus Map View 76x50 Zoom Use 0% Tactical HUD 1 Map Filters NONE Filters SATURATION(100) Steam 1 RUN: 63925e39-0f46-469b-98cf-5c1fd6b1fcda